bitfinex-derivatives/quotes_SOLF0:USTF0_20241008
["timestamp","ask_amount","ask_price","bid_price","bid_amount"]
[1728427208120,10.67,143.56,143.53,1.3751]
[1728427208321,4.98,143.59,143.53,1.3751]
[1728427208527,10.67,143.58,143.53,1.3751]
[1728427208918,10.67,143.58,143.56,3.4846]
[1728427213121,8.4642,143.59,143.56,3.4846]
[1728427213322,10.67,143.58,143.56,3.4846]
[1728427214525,10.67,143.57,143.53,1.3751]
[1728427214728,10.67,143.55,143.51,6.41052]
[1728427215228,10.67,143.55,143.52,3.4857]
[1728427219429,14.155,143.55,143.52,3.4857]
[1728427220435,14.1554,143.54,143.51,0.12502]
[1728427221337,14.1554,143.54,143.51,3.61092]
[1728427222127,4.98,143.57,143.51,0.12502]
[1728427222332,14.1548,143.56,143.53,3.4854]
[1728427223032,8.4645,143.57,143.52,10.67]
[1728427223226,19.1345,143.57,143.52,10.67]
[1728427223632,4.98,143.57,143.54,3.485]
[1728427223832,4.98,143.57,143.52,10.67]
[1728427224235,4.98,143.57,143.54,3.485]
[1728427225438,10.67,143.58,143.54,10.67]
[1728427225737,10.67,143.58,143.55,3.4849]
[1728427227539,14.1544,143.58,143.55,3.4849]
[1728427232041,3.4845,143.57,143.55,3.4849]
[1728427232448,10.67,143.58,143.55,3.4849]
[1728427233450,14.1543,143.58,143.55,3.4849]
[1728427233852,10.67,143.58,143.52,10.67]
[1728427234150,10.67,143.6,143.55,10.67]
[1728427235342,10.67,143.6,143.57,3.4843]
[1728427236048,10.67,143.6,143.58,3.4842]
[1728427237350,5.10502,143.63,143.55,10.67]
[1728427237546,3.4835,143.62,143.59,3.484]
[1728427237745,10.67,143.61,143.59,3.484]
[1728427238451,5.10502,143.63,143.57,10.67]
[1728427238646,0.12502,143.63,143.6,10.67]
[1728427239047,0.12502,143.63,143.6,3.4835]
[1728427239752,0.12502,143.63,143.59,15.65]
[1728427239953,0.12502,143.63,143.61,3.4835]
[1728427247655,0.12502,143.63,143.59,4.98]
[1728427247843,10.67,143.62,143.58,4.98]
[1728427248247,10.67,143.62,143.58,15.65]
[1728427248648,3.4834,143.62,143.59,3.4838]
[1728427251367,14.1534,143.62,143.59,3.4838]
[1728427259361,14.1535,143.61,143.58,8.4642]
[1728427259963,14.1535,143.61,143.58,3.4842]
[1728427262369,10.67,143.62,143.57,12.0515]
[1728427262564,10.67,143.62,143.59,3.4838]
[1728427262565,14.1534,143.62,143.59,3.4838]
[1728427265966,3.4836,143.61,143.58,3.4841]
[1728427266567,3.4836,143.61,143.57,12.0515]
[1728427266866,14.1533,143.62,143.57,12.0515]
[1728427268370,14.1533,143.62,143.6,3.4838]
[1728427269367,15.77502,143.63,143.61,3.4835]
[1728427269967,19.25802,143.63,143.61,3.4835]
[1728427271277,15.77502,143.63,143.6,3.4837]
[1728427271476,3.4833,143.62,143.6,3.4837]
[1728427271678,10.67,143.61,143.54,1.3147]
[1728427271879,3.4845,143.57,143.54,1.3147]
[1728427272172,10.67,143.6,143.55,10.67]
[1728427273379,14.1539,143.6,143.57,3.4845]
[1728427275281,10.67,143.59,143.54,11.9847]
[1728427276288,3.4843,143.58,143.55,3.4848]
[1728427277991,3.4841,143.59,143.56,3.4846]
[1728427287494,3.4838,143.6,143.55,10.67]
[1728427287993,3.4838,143.6,143.56,3.4846]
[1728427288296,3.4838,143.6,143.55,10.67]
[1728427289197,3.4838,143.6,143.55,15.65]
[1728427289498,3.4838,143.6,143.57,3.4843]
[1728427294606,10.67,143.61,143.56,10.67]
[1728427294908,10.79502,143.63,143.58,10.67]
[1728427295596,3.4833,143.62,143.59,3.4838]
[1728427295796,10.79502,143.63,143.58,10.67]
[1728427296307,3.4833,143.62,143.59,3.4839]
[1728427299098,14.1536,143.61,143.58,3.4841]
[1728427300513,10.67,143.61,143.56,10.67]
[1728427300708,3.4839,143.6,143.57,3.4845]
[1728427308316,10.67,143.59,143.54,6.2947]
[1728427310413,14.1541,143.59,143.56,3.4846]
[1728427312918,3.4842,143.58,143.55,14.1548]
[1728427313418,3.4842,143.58,143.55,3.4848]
[1728427314513,10.67,143.58,143.54,1.3147]
[1728427315514,8.42265931,143.6,143.54,4.7998]
[1728427315515,3.4845,143.57,143.54,4.7998]
[1728427315719,8.42265931,143.6,143.54,1.3147]
[1728427315918,10.67,143.59,143.54,1.3147]
[1728427317516,3.4843,143.58,143.55,3.4848]
[1728427320520,3.484,143.59,143.56,3.4846]
[1728427320722,19.09265931,143.6,143.55,10.67]
[1728427322422,3.484,143.59,143.56,3.4847]
[1728427322615,15.63,143.61,143.56,10.67]
[1728427323109,3.4839,143.6,143.57,3.4845]
[1728427326325,14.154,143.59,143.57,3.4845]
[1728427326725,14.154,143.59,143.56,3.4846]
[1728427331315,1.44,143.62,143.54,1.3147]
[1728427331522,3.4843,143.58,143.55,3.4848]
[1728427332726,10.67,143.6,143.54,11.9847]
[1728427333027,10.67,143.6,143.55,10.67]
[1728427333226,89.62169604,143.63,143.56,10.67]
[1728427333430,10.67,143.62,143.54,1.3147]
[1728427333730,10.67,143.61,143.56,15.63]
[1728427334430,14.1537,143.61,143.57,3.4844]
[1728427336129,10.67,143.6,143.57,3.4844]
[1728427336432,14.1539,143.6,143.57,3.4844]
[1728427336615,89.62169604,143.63,143.55,4.96]
[1728427336823,10.67,143.62,143.57,10.67]
[1728427337228,14.1533,143.62,143.59,3.4839]
[1728427337523,89.62169604,143.63,143.58,10.67]
[1728427337524,100.29169604,143.63,143.58,10.67]
[1728427338119,103.77489604,143.63,143.6,3.4837]
[1728427341519,93.10489604,143.63,143.58,10.67]
[1728427341727,93.10489604,143.63,143.61,3.4835]
[1728427341728,100.29169604,143.63,143.61,3.4835]
[1728427342227,100.29169604,143.63,143.58,15.63]
[1728427342428,14.1533,143.62,143.59,3.4838]
[1728427342734,10.67,143.6,143.55,4.96]
[1728427342933,4.96,143.62,143.55,15.63]
[1728427343131,10.67,143.61,143.55,15.63]
[1728427344021,14.1537,143.61,143.57,3.4843]
[1728427344228,10.67,143.61,143.57,3.4843]
[1728427344629,3.4838,143.6,143.57,3.4843]
[1728427345837,10.67,143.59,143.57,3.4843]
[1728427346030,14.1541,143.59,143.56,3.4846]
[1728427348441,10.67,143.59,143.54,1.3147]
[1728427348642,14.1543,143.58,143.55,3.4849]
[1728427349034,14.1545,143.57,143.54,3.4852]
[1728427349432,10.67,143.57,143.52,15.63]
[1728427349631,14.1547,143.57,143.53,3.4852]
[1728427350239,3.4848,143.56,143.53,3.4852]
[1728427351445,14.1546,143.57,143.53,3.4852]
[1728427354034,10.67,143.56,143.52,3.4856]
[1728427354240,10.67,143.56,143.51,5.08502]
[1728427354647,3.4853,143.54,143.51,8.57092]
[1728427355137,3.4851,143.55,143.51,8.57092]
[1728427356243,3.4851,143.55,143.51,3.61092]
[1728427356846,10.67,143.54,143.51,0.12502]
[1728427357741,14.1553,143.54,143.51,0.12502]
[1728427359643,10.67,143.53,143.51,0.12502]
[1728427360055,4.96,143.56,143.51,0.12502]
[1728427360244,10.67,143.55,143.51,0.12502]
[1728427360438,14.1551,143.55,143.51,3.61082]
[1728427360647,14.1551,143.55,143.51,0.12502]
[1728427361538,14.1551,143.55,143.52,3.4857]
[1728427361838,14.1551,143.55,143.51,0.12502]
[1728427362243,14.1551,143.55,143.51,3.61082]
[1728427363951,14.1551,143.55,143.52,3.4857]
[1728427364351,3.4852,143.54,143.51,0.12502]
[1728427364754,3.4852,143.54,143.51,3.61082]
[1728427368249,14.1556,143.53,143.51,0.12502]
[1728427370153,14.1556,143.53,143.51,3.61092]
[1728427370349,10.67,143.54,143.51,0.12502]
[1728427371050,14.1552,143.54,143.51,3.61082]
[1728427372058,3.4855,143.53,143.51,3.61092]
[1728427372260,89.54780351,143.55,143.51,0.12502]
[1728427372853,89.54780351,143.55,143.53,3.4853]
[1728427373051,89.54780351,143.55,143.51,0.12502]
[1728427373457,93.03280351,143.55,143.52,3.4856]
[1728427376664,93.03280351,143.55,143.52,3.4857]
[1728427378464,89.54780351,143.55,143.51,0.12502]
[1728427378658,3.4852,143.54,143.51,3.61072]
[1728427378965,89.54780351,143.55,143.51,0.12502]
[1728427380159,93.03290351,143.55,143.52,3.4856]
[1728427381368,3.4855,143.53,143.51,3.61092]
[1728427381570,10.67,143.54,143.51,3.61092]
[1728427381767,10.67,143.54,143.51,0.12502]
[1728427381969,10.67,143.54,143.52,3.4857]
[1728427388868,14.1552,143.54,143.51,3.61092]
[1728427399578,3.4852,143.54,143.51,3.61092]
[1728427400566,3.4852,143.54,143.51,0.12502]
[1728427400771,89.54780351,143.55,143.51,10.79502]
[1728427400974,100.21780351,143.55,143.51,0.12502]
[1728427401674,3.4852,143.54,143.52,3.4856]
[1728427402077,3.4852,143.54,143.51,0.12502]
[1728427402471,3.4852,143.54,143.51,3.61082]
[1728427408978,3.4857,143.52,143.51,0.12502]
[1728427409276,10.67,143.54,143.51,0.12502]
[1728427409785,3.4856,143.53,143.51,0.12502]
[1728427413082,3.4857,143.52,143.51,0.12502]
[1728427414783,3.4859,143.51,143.5,0.04012431]
[1728427414986,14.1559,143.51,143.5,0.04012431]
[1728427415483,10.67,143.51,143.45,3.65060784]
[1728427415675,10.67,143.49,143.45,3.65060784]
[1728427416079,10.67,143.49,143.45,0.16340784]
[1728427416279,14.1565,143.49,143.46,3.4872]
[1728427416683,10.67,143.47,143.39,0.32616175]
[1728427416878,10.67,143.43,143.39,0.32616175]
[1728427418479,4.96,143.46,143.41,3.4884]
[1728427418679,10.67,143.43,143.41,3.4884]
[1728427419488,10.67,143.43,143.39,3.81486175]
[1728427419782,4.96,143.46,143.39,0.32616175]
[1728427419975,10.67,143.42,143.39,0.32616175]
[1728427420382,10.67,143.42,143.4,3.61368]
[1728427426592,3.4874,143.45,143.42,3.4881]
[1728427426792,10.67,143.44,143.42,3.4881]
[1728427428409,1.608,143.49,143.4,0.12518]
[1728427428596,1.1971,143.49,143.42,10.67]
[1728427428799,3.56564507,143.5,143.42,10.67]
[1728427428800,10.67,143.47,143.42,10.67]
[1728427429001,10.67,143.47,143.44,3.4874]
[1728427429814,10.67,143.47,143.45,3.4872]
[1728427430409,19.1167,143.48,143.45,3.4872]
[1728427430604,8.4462,143.5,143.47,3.4869]
[1728427430905,10.67,143.49,143.47,3.4869]
[1728427441320,10.67,143.49,143.46,3.4871]
[1728427441321,10.67,143.48,143.46,3.4871]
[1728427441517,10.67,143.48,143.42,6.2861]
[1728427441722,10.67,143.48,143.42,16.9561]
[1728427442132,4.96,143.48,143.42,1.3261]
[1728427442423,10.67,143.47,143.42,11.9961]
[1728427442922,4.96,143.48,143.42,11.9961]
[1728427443112,15.63,143.48,143.42,11.9961]
[1728427444414,15.63,143.48,143.46,3.487]
[1728427445925,3.56460916,143.51,143.43,15.63]
[1728427446120,10.67,143.5,143.45,10.67]
[1728427446421,10.67,143.5,143.47,3.4867]
[1728427448624,10.67,143.49,143.47,3.4867]
[1728427451823,0.12502,143.51,143.45,10.67]
[1728427452022,0.12502,143.51,143.48,3.4865]
[1728427452322,10.79502,143.51,143.48,3.4865]
[1728427453028,0.12502,143.51,143.47,10.67]
[1728427453234,0.12502,143.51,143.49,10.67]
[1728427454436,0.12502,143.51,143.5,3.4862]
[1728427457033,0.12502,143.51,143.5,14.1562]
[1728427457247,10.79502,143.57,143.5,10.67]
[1728427457534,10.79502,143.57,143.52,10.67]
[1728427457736,10.79502,143.57,143.54,3.4851]
[1728427458140,0.12502,143.57,143.53,10.67]
[1728427458331,0.12502,143.57,143.52,4.96]
[1728427458332,0.12502,143.57,143.54,10.67]
[1728427458842,0.12502,143.57,143.55,4.96]
[1728427459031,0.12502,143.57,143.56,3.4847]
[1728427460237,0.12502,143.57,143.55,8.4449]
[1728427465139,0.12502,143.57,143.56,3.4847]
[1728427480052,10.67,143.61,143.56,10.67]
[1728427480243,14.1537,143.61,143.58,3.4842]
[1728427481145,3.4838,143.6,143.57,3.4843]
[1728427489153,3.484,143.59,143.56,14.1546]
[1728427491162,10.67,143.6,143.56,10.67]
[1728427491465,14.1539,143.6,143.57,3.4845]
[1728427493368,3.4839,143.6,143.57,3.4845]
[1728427500673,3.4839,143.6,143.54,1.3128]
[1728427500674,10.67,143.59,143.54,1.3128]
[1728427500882,3.49467772,143.6,143.55,10.67]
[1728427501177,3.49467772,143.6,143.57,3.4844]
[1728427501178,14.1539,143.6,143.57,3.4844]
[1728427501380,17.66704228,143.6,143.57,3.4844]
[1728427502570,10.67,143.59,143.54,6.2728]
[1728427503366,3.4844,143.58,143.55,3.4849]
[1728427505166,10.67,143.59,143.53,12.062]
[1728427505372,3.4846,143.57,143.54,3.4851]
[1728427505977,10.67,143.59,143.53,12.062]
[1728427506282,3.4844,143.58,143.55,3.485]
[1728427507278,3.4845,143.57,143.54,3.4851]
[1728427507675,10.67,143.59,143.53,1.392]
[1728427507881,8.47314228,143.6,143.52,3.4856]
[1728427507882,10.67,143.56,143.52,3.4856]
[1728427508081,10.67,143.56,143.51,15.75502]
[1728427508281,14.1547,143.56,143.53,3.4853]
[1728427508478,10.67,143.57,143.52,10.67]
[1728427508675,10.67,143.59,143.54,10.67]
[1728427510475,3.4843,143.58,143.55,3.4848]
[1728427510678,14.1543,143.58,143.55,3.4848]
[1728427510876,10.67,143.59,143.55,10.67]
[1728427511685,10.67,143.59,143.56,3.4847]
[1728427512183,10.67,143.59,143.57,3.4845]
[1728427512484,3.4838,143.6,143.57,3.4845]
[1728427515987,4.96,143.61,143.55,10.67]
[1728427516188,3.4836,143.61,143.56,10.67]
[1728427517179,3.4836,143.61,143.57,3.4844]
[1728427517380,3.4836,143.61,143.56,10.67]
[1728427518492,10.67,143.62,143.58,3.4841]
[1728427518791,14.1534,143.62,143.58,3.4841]
[1728427519887,14.1534,143.62,143.59,3.4839]
[1728427526092,3.4835,143.61,143.59,3.4839]
[1728427527002,3.4835,143.61,143.58,3.4841]
[1728427532809,10.67,143.61,143.57,4.96]
[1728427533803,10.67,143.61,143.57,15.63]
[1728427535508,14.1536,143.61,143.58,3.4841]
[1728427543016,14.1536,143.61,143.57,4.96]
[1728427543017,10.67,143.61,143.57,4.96]
[1728427543319,3.484,143.59,143.57,4.96]
[1728427543619,10.67,143.61,143.57,4.96]
[1728427544017,10.67,143.61,143.55,10.67]
[1728427544219,3.4839,143.6,143.57,3.4845]
[1728427549129,3.46970055,143.6,143.54,10.67]
[1728427549325,3.4841,143.59,143.56,3.4847]
[1728427549519,14.1541,143.59,143.56,3.4847]
[1728427550725,10.67,143.59,143.56,3.4847]
[1728427550919,14.1538,143.6,143.56,3.4847]
[1728427555738,3.4841,143.59,143.56,3.4847]
[1728427558829,3.4838,143.6,143.57,3.4845]
[1728427559035,89.63095703,143.63,143.57,10.67]
[1728427559334,105.24095703,143.63,143.57,10.67]
[1728427559536,3.4834,143.62,143.59,3.4839]
[1728427562232,14.1534,143.62,143.59,3.4839]
[1728427563037,10.67,143.62,143.6,3.4836]
[1728427563333,100.30095703,143.63,143.59,10.67]
[1728427564332,100.30095703,143.63,143.6,3.4837]
[1728427565339,103.78395703,143.63,143.6,3.4837]
[1728427566242,103.78395703,143.63,143.59,10.67]
[1728427566541,103.78395703,143.63,143.61,3.4835]
[1728427567142,89.63095703,143.63,143.61,3.4835]
[1728427567442,89.63095703,143.63,143.62,3.4833]
[1728427572046,89.63095703,143.63,143.61,3.4834]
[1728427575752,10.67,143.62,143.59,4.94]
[1728427575944,14.1534,143.62,143.59,8.4239]
[1728427576652,3.4834,143.62,143.59,8.4239]
[1728427578042,3.4834,143.62,143.59,3.4839]
[1728427585047,10.67,143.62,143.58,1.4417]
[1728427585262,10.67,143.62,143.58,4.9258]
[1728427585263,3.4836,143.61,143.58,4.9258]
[1728427586161,10.67,143.62,143.58,1.4417]
[1728427586465,14.1534,143.62,143.59,3.484]
[1728427586659,10.67,143.62,143.58,1.4417]
[1728427587261,10.67,143.62,143.59,3.484]
[1728427594562,10.67,143.62,143.58,1.4417]
[1728427594759,3.60822,143.63,143.6,3.4838]
[1728427595063,14.27822,143.63,143.6,3.4838]
[1728427601075,0.12502,143.63,143.62,3.4833]
[1728427604468,10.79502,143.63,143.62,3.4833]
[1728427605170,10.79502,143.63,143.59,10.67]
[1728427605373,10.79502,143.63,143.61,3.4834]
[1728427612675,0.12502,143.63,143.58,1.4417]
[1728427612881,10.67,143.6,143.56,4.94]
[1728427613179,10.67,143.59,143.55,4.94]
[1728427613379,14.1541,143.59,143.56,3.4846]
[1728427613682,10.67,143.59,143.55,4.94]
[1728427614075,10.67,143.59,143.57,3.4843]
[1728427617478,10.67,143.62,143.57,10.67]
[1728427617685,10.67,143.62,143.58,10.67]
[1728427618175,10.67,143.62,143.58,15.61]
[1728427618386,10.67,143.62,143.59,3.4838]
[1728427620080,3.60822,143.63,143.6,3.4837]
[1728427620282,10.67,143.62,143.6,3.4837]
[1728427626380,10.67,143.62,143.61,3.4835]
[1728427627784,10.67,143.62,143.6,3.4837]
[1728427630687,10.67,143.62,143.58,15.61]
[1728427630888,10.67,143.62,143.61,3.4835]
[1728427632578,0.12502,143.63,143.61,3.4835]
[1728427632774,10.79502,143.63,143.61,3.4835]
[1728427634382,0.12502,143.63,143.61,3.4835]
[1728427634580,10.79502,143.63,143.61,3.4835]
[1728427637389,0.12502,143.63,143.61,3.4835]
[1728427637594,0.12502,143.63,143.62,3.4833]
[1728427638184,0.12502,143.63,143.62,14.1533]
[1728427642488,0.12502,143.63,143.62,3.4833]
[1728427645798,0.12502,143.63,143.61,4.94]
[1728427648007,0.12502,143.63,143.61,8.4235]
[1728427653099,0.12502,143.63,143.61,4.94]
[1728427653289,0.12502,143.63,143.62,3.4833]
[1728427659699,0.12502,143.63,143.61,4.94]
[1728427659900,3.60802,143.63,143.61,4.94]
[1728427660107,3.60802,143.63,143.6,3.4837]
[1728427660805,0.12502,143.63,143.6,3.4837]
[1728427661307,0.12502,143.63,143.61,3.4835]
[1728427661905,0.12502,143.63,143.59,4.0458]
[1728427662101,10.67,143.61,143.58,3.4841]
[1728427662297,10.67,143.61,143.56,10.67]
[1728427662514,10.67,143.6,143.56,4.94]
[1728427662714,10.67,143.6,143.56,15.61]
[1728427662926,10.67,143.61,143.56,15.61]
[1728427663208,10.67,143.62,143.57,10.67]
[1728427663796,10.67,143.61,143.58,3.4842]
[1728427665006,10.67,143.61,143.56,4.94]
[1728427665204,10.67,143.61,143.57,3.4845]
[1728427665404,10.67,143.59,143.55,6.2771]
[1728427666514,14.1541,143.59,143.56,3.4847]
[1728427667206,14.1541,143.59,143.55,1.3371]
[1728427667404,14.1544,143.58,143.54,9.8501]
[1728427667830,10.67,143.58,143.54,6.3651]
[1728427668009,14.1543,143.58,143.55,3.485]
[1728427670407,3.4842,143.59,143.55,3.485]
[1728427670607,10.67,143.58,143.55,3.485]
[1728427670809,10.67,143.57,143.54,6.3651]
[1728427671115,14.1546,143.57,143.54,4.94]
[1728427671501,14.1548,143.56,143.53,67.54491087]
[1728427672715,14.1548,143.56,143.53,64.05951087]
[1728427673213,10.67,143.54,143.51,0.12502]
[1728427673413,14.1554,143.54,143.51,0.12502]
[1728427673807,10.67,143.53,143.51,0.12502]
[1728427674315,10.67,143.53,143.51,3.61082]
[1728427675327,10.67,143.52,143.51,0.12502]
[1728427676004,14.1557,143.52,143.51,0.12502]
[1728427677607,10.67,143.52,143.46,4.9156]
[1728427677814,10.67,143.48,143.46,3.4871]
[1728427678618,10.67,143.48,143.45,7.87012]
[1728427678810,10.67,143.48,143.47,3.4869]
[1728427680718,6.93511045,143.51,143.48,3.4867]
[1728427681118,10.67,143.5,143.48,3.4867]
[1728427681321,6.93511045,143.51,143.45,7.87012]
[1728427681322,10.67,143.49,143.45,7.87012]
[1728427681522,14.1565,143.49,143.45,6.47432]
[1728427682119,14.1565,143.49,143.45,9.96162]
[1728427684125,10.67,143.47,143.45,9.96162]
[1728427684425,10.67,143.46,143.45,1.53432]
[1728427685527,10.67,143.46,143.45,5.02172]
[1728427686321,14.1572,143.46,143.45,0.12502]
[1728427687119,3.56510383,143.49,143.45,0.12502]
[1728427687317,10.67,143.46,143.45,0.12502]
[1728427687828,10.67,143.48,143.45,3.61222]
[1728427688222,10.67,143.48,143.45,0.12502]
[1728427688820,10.67,143.49,143.46,10.67]
[1728427689733,14.18269776,143.51,143.46,10.67]
[1728427689937,10.67,143.51,143.46,10.67]
[1728427690227,14.09505662,143.51,143.46,10.67]
[1728427690434,17.58105662,143.51,143.47,3.4868]
[1728427691631,17.58105662,143.51,143.46,10.67]
[1728427691829,10.67,143.51,143.47,10.67]
[1728427692335,10.67,143.51,143.48,3.4866]
[1728427692535,10.67,143.51,143.47,10.67]
[1728427692831,10.67,143.51,143.48,3.4865]
[1728427698329,10.67,143.49,143.46,3.487]
[1728427700843,3.4864,143.5,143.48,3.4867]
[1728427700844,10.67,143.5,143.48,3.4867]
[1728427701047,10.67,143.51,143.47,10.67]
[1728427702437,10.67,143.51,143.49,3.4864]
[1728427709958,94.49696982,143.54,143.47,10.67]
[1728427710249,10.67,143.52,143.48,10.67]
[1728427710751,10.67,143.52,143.5,3.486]
[1728427712552,10.67,143.52,143.48,10.67]
[1728427712758,100.22696982,143.54,143.49,10.67]
[1728427713443,100.22696982,143.54,143.52,3.4856]
[1728427714151,10.67,143.56,143.52,10.67]
[1728427714555,0.12502,143.57,143.53,10.67]
[1728427715346,0.12502,143.57,143.56,3.4847]
[1728427716552,0.12502,143.57,143.55,3.4849]
[1728427723466,0.12502,143.57,143.54,10.67]
[1728427723660,0.12502,143.57,143.56,3.4847]
[1728427723855,0.12502,143.57,143.54,10.67]
[1728427724160,10.79502,143.57,143.53,10.67]
[1728427724754,10.79502,143.57,143.55,3.4849]
[1728427734879,0.12502,143.57,143.55,3.4849]
[1728427741172,14.27962,143.57,143.54,3.4852]
[1728427741377,10.67,143.56,143.52,1.3507]
[1728427741573,10.67,143.53,143.5,4.92]
[1728427742484,14.1555,143.53,143.5,8.406]
[1728427742683,14.1555,143.53,143.48,10.67]
[1728427742684,10.67,143.52,143.48,10.67]
[1728427742897,10.67,143.52,143.48,15.59]
[1728427743989,10.67,143.52,143.49,3.4862]
[1728427744385,10.67,143.52,143.48,15.59]
[1728427744586,10.67,143.52,143.49,3.4863]
[1728427744786,10.67,143.52,143.48,15.59]
[1728427745086,10.67,143.52,143.49,3.4863]
[1728427747187,10.67,143.51,143.48,8.4065]
[1728427751094,10.67,143.51,143.48,3.4865]
[1728427751285,10.67,143.5,143.47,9.0079]
[1728427751596,10.67,143.5,143.47,6.248]
[1728427755602,14.1561,143.5,143.47,6.248]
[1728427756498,14.1561,143.5,143.46,4.92]
[1728427756704,10.67,143.48,143.46,8.407]
[1728427756905,10.67,143.48,143.46,4.92]
[1728427758004,10.67,143.48,143.46,8.407]
[1728427761408,10.67,143.48,143.46,3.487]
[1728427765007,3.4862,143.5,143.46,3.487]
[1728427765214,10.67,143.48,143.46,3.487]
[1728427766803,10.67,143.48,143.45,5.04502]
[1728427767006,10.67,143.48,143.45,8.53222]
[1728427767601,14.157,143.47,143.45,0.12502]
[1728427767808,10.67,143.47,143.45,0.12502]
[1728427769508,10.67,143.47,143.45,3.61232]
[1728427772414,10.67,143.47,143.45,0.12502]
[1728427773632,10.67,143.46,143.45,0.12502]
[1728427773925,14.1571,143.46,143.45,0.12502]
[1728427778915,10.67,143.46,143.45,0.12502]
[1728427779423,14.1571,143.46,143.45,0.12502]
[1728427787524,10.67,143.46,143.45,0.12502]
[1728427790235,14.1571,143.46,143.45,0.12502]
[1728427797338,3.4871,143.46,143.45,0.12502]
[1728427797532,10.67,143.46,143.45,0.12502]
[1728427799445,14.1571,143.46,143.45,0.12502]
[1728427804244,3.53355619,143.47,143.45,3.61232]
[1728427804459,10.67,143.48,143.45,3.61232]
[1728427804937,14.1568,143.48,143.45,3.61232]
[1728427806953,3.46844649,143.49,143.45,3.61232]
[1728427806954,14.1571,143.46,143.45,0.12502]
[1728427807147,10.67,143.46,143.41,1.3243]
[1728427807343,10.67,143.43,143.4,0.12518]
[1728427807549,10.67,143.41,143.4,0.12518]
[1728427809340,14.1583,143.41,143.4,0.12518]
[1728427810646,4.92,143.44,143.4,0.12518]
[1728427810849,10.67,143.41,143.4,0.12518]
[1728427813347,14.1583,143.41,143.4,0.12518]
[1728427818358,4.92,143.44,143.4,0.12518]
[1728427818557,10.67,143.42,143.4,0.12518]
[1728427819150,10.67,143.42,143.4,3.61368]
[1728427826962,10.67,143.41,143.4,3.61368]
[1728427833872,10.67,143.41,143.4,0.12518]
[1728427836078,14.1583,143.41,143.4,0.12518]
[1728427840389,10.67,143.41,143.4,0.12518]
[1728427846890,93.10844499,143.43,143.4,0.12518]
[1728427847101,10.67,143.42,143.4,3.61378]
[1728427847396,93.10844499,143.43,143.4,3.61378]
[1728427847596,10.67,143.42,143.4,3.61378]
[1728427851994,4.92,143.48,143.41,10.67]
[1728427852200,10.67,143.45,143.41,4.0912]
[1728427853398,14.1574,143.45,143.42,3.4879]
[1728427853794,10.67,143.45,143.42,3.4879]
[1728427855701,10.67,143.45,143.41,4.0912]
[1728427855893,10.67,143.45,143.43,3.4876]
[1728427859892,14.1573,143.45,143.42,3.488]
[1728427860698,10.67,143.45,143.42,3.488]